[Event "FIDE WYCC Open U14 2023"]
[Site "Montesilvano"]
[Date "2023.11.13"]
[Round "1.1"]
[White "Martinovic, David"]
[Black "Pham Tran Gia Phuc"]
[Result "0-1"]
[ECO "B90"]
[WhiteElo "1848"]
[BlackElo "2386"]
[Annotator "ChessBase"]
[PlyCount "82"]
[EventDate "2023.11.13"]
[EventType "swiss"]
[EventCountry "ITA"]
[SourceTitle "playchess.com"]
[Source "ChessBase"]
[SourceQuality "1"]
[TimeControl "40/5400+30:1800+30"]

1. e4 {[%emt 0:00:01]} c5 {[%emt 0:00:09]} 2. Nf3 {[%emt 0:00:03]} d6 {[%emt 0:00:51]} 3. d4 {[%emt 0:02:02]} cxd4 {[%emt 0:00:11]} 4. Nxd4 {[%emt 0:00:14]} Nf6 {[%emt 0:00:18]} 5. Nc3 {[%emt 0:00:30]} a6 {[%emt 0:00:04]} 6. Be3 {[%emt 0:01:06]} e5 {[%emt 0:00:07]} 7. Nb3 {[%emt 0:00:10]} Be6 {[%emt 0:00:05]} 8. Qd2 {[%emt 0:00:30]} Nbd7 {[%emt 0:00:06]} 9. f3 {[%emt 0:00:12]} h5 {[%emt 0:00:05]} 10. Be2 {[%emt 0:02:09]} Rc8 {[%emt 0:01:06]} 11. Nd5 {[%emt 0:02:15]} Bxd5 {[%emt 0:02:01]} 12. exd5 {[%emt 0:01:14]} Nb6 {[%emt 0:00:37]} 13. c4 {[%emt 0:01:27]} Nxc4 {[%emt 0:05:58]} 14. Bxc4 {[%emt 0:00:12]} Rxc4 {[%emt 0:00:06]} 15. Na5 {[%emt 0:00:07]} Rc8 {[%emt 0:00:04]} 16. O-O {[%emt 0:03:56]} Qd7 {[%emt 0:04:33]} 17. Rac1 {[%emt 0:08:01]} Rxc1 {[%emt 0:00:24]} 18. Rxc1 {[%emt 0:00:10]} Be7 {[%emt 0:00:03]} 19. Nc4 {[%emt 0:14:00]} O-O {[%emt 0:18:05]} 20. Nb6 {[%emt 0:03:32]} Qb5 {[%emt 0:09:15]} 21. b4 {[%emt 0:12:21]} Bd8 {[%emt 0:02:41]} 22. a4 {[%emt 0:07:38]} Qe8 {[%emt 0:00:07]} 23. Rc8 {[%emt 0:05:27]} Qe7 {[%emt 0:00:11]} 24. Rc4 {[%emt 0:05:59]} Bxb6 {[%emt 0:00:30]} 25. Bxb6 {[%emt 0:02:42]} Qd7 {[%emt 0:00:09]} 26. b5 {[%emt 0:05:40]} axb5 {[%emt 0:00:15]} 27. Rc7 {[%emt 0:00:36]} Qf5 {[%emt 0:00:09]} 28. a5 {[%emt 0:05:32]} Rc8 {[%emt 0:00:22]} 29. Qc1 {[%emt 0:03:34]} Rxc7 {[%emt 0:00:41]} 30. Qxc7 {[%emt 0:00:19]} Qb1+ {[%emt 0:00:01]} 31. Kf2 {[%emt 0:00:13]} Qa2+ {[%emt 0:00:05]} 32. Kg3 {[%emt 0:02:20]} Qxd5 {[%emt 0:00:07]} 33. Qc8+ {[%emt 0:01:49]} Kh7 {[%emt 0:00:16]} 34. Qf5+ {[%emt 0:00:48]} Kh8 {[%emt 0:00:07]} 35. Bd8 {[%emt 0:02:45]} Qe6 {[%emt 0:03:13]} 36. Qg5 {[%emt 0:03:03]} b4 {[%emt 0:00:10]} 37. Bxf6 {[%emt 0:01:03]} Qxf6 {[%emt 0:00:08]} 38. Qxh5+ {[%emt 0:00:12]} Qh6 {[%emt 0:00:04]} 39. Qxf7 {[%emt 0:01:30]} Qf4+ {[%emt 0:00:03]} 40. Qxf4 {[%emt 0:00:00]} exf4+ {[%emt 0:00:00]} 41. Kxf4 {[%emt 0:00:13]} b3 {[%emt 0:00:07]} 0-1

[Event "FIDE WYCC Open U14 2023"]
[Site "Montesilvano"]
[Date "2023.11.13"]
[Round "1.2"]
[White "Tabuenca Mendataurigoitia, Daniel"]
[Black "Zaragoza Alanis, Miguel Arnulfo"]
[Result "0-1"]
[ECO "C45"]
[WhiteElo "2383"]
[BlackElo "1838"]
[Annotator "ChessBase"]
[PlyCount "142"]
[EventDate "2023.11.13"]
[EventType "swiss"]
[EventCountry "ITA"]
[SourceTitle "playchess.com"]
[Source "ChessBase"]
[SourceQuality "1"]
[TimeControl "40/5400+30:1800+30"]

1. e4 {[%emt 0:00:02]} e5 {[%emt 0:00:01]} 2. Nf3 {[%emt 0:00:18]} Nc6 {[%emt 0:00:04]} 3. d4 {[%emt 0:00:09]} exd4 {[%emt 0:00:05]} 4. Nxd4 {[%emt 0:00:07]} Bc5 {[%emt 0:00:23]} 5. Be3 {[%emt 0:00:11]} Qf6 {[%emt 0:00:07]} 6. c3 {[%emt 0:00:08]} Nge7 {[%emt 0:00:07]} 7. Bb5 {[%emt 0:00:11]} Qg6 {[%emt 0:10:28]} 8. O-O {[%emt 0:02:58]} d6 {[%emt 0:06:46]} 9. b4 {[%emt 0:22:19]} Bb6 {[%emt 0:08:59]} 10. Re1 {[%emt 0:08:02]} O-O {[%emt 0:01:36]} 11. Nd2 {[%emt 0:16:25]} Bh3 {[%emt 0:14:48]} 12. Bf1 {[%emt 0:07:11]} Kh8 {[%emt 0:04:50]} 13. Kh1 {[%emt 0:04:20]} Bd7 {[%emt 0:00:54]} 14. b5 {[%emt 0:07:23]} Ne5 {[%emt 0:02:13]} 15. f4 {[%emt 0:06:31]} Ng4 {[%emt 0:00:22]} 16. f5 {[%emt 0:00:20]} Nxe3 {[%emt 0:01:58]} 17. Rxe3 {[%emt 0:00:13]} Qf6 {[%emt 0:02:30]} 18. Qe1 {[%emt 0:08:19]} Rae8 {[%emt 0:04:35]} 19. e5 {[%emt 0:01:37]} Qh6 {[%emt 0:10:17]} 20. Rh3 {[%emt 0:04:04]} Qf4 {[%emt 0:01:18]} 21. e6 {[%emt 0:01:29]} fxe6 {[%emt 0:11:55]} 22. fxe6 {[%emt 0:00:49]} Bc8 {[%emt 0:00:13]} 23. Bd3 {[%emt 0:00:55]} g6 {[%emt 0:00:01]} 24. N2f3 {[%emt 0:01:11]} Kg8 {[%emt 0:10:09]} 25. Rh4 {[%emt 0:03:19]} Qf6 {[%emt 0:00:26]} 26. Rg4 {[%emt 0:02:24]} Bxd4 {[%emt 0:04:00]} 27. Nxd4 {[%emt 0:00:19]} c5 {[%emt 0:00:28]} 28. bxc6 {[%emt 0:00:39]} bxc6 {[%emt 0:00:01]} 29. Rg3 {[%emt 0:01:14]} d5 {[%emt 0:03:50]} 30. Qe3 {[%emt 0:00:56]} c5 {[%emt 0:00:40]} 31. Nb5 {[%emt 0:00:27]} Nf5 {[%emt 0:01:04]} 32. Bxf5 {[%emt 0:00:39]} Qxf5 {[%emt 0:00:05]} 33. Rf3 {[%emt 0:01:09]} Qxe6 {[%emt 0:00:20]} 34. Rxf8+ {[%emt 0:00:10]} Rxf8 {[%emt 0:00:11]} 35. Qxc5 {[%emt 0:00:31]} Qe2 {[%emt 0:01:08]} 36. Nxa7 {[%emt 0:00:24]} Bb7 {[%emt 0:00:36]} 37. Qb5 {[%emt 0:00:29]} Qf2 {[%emt 0:00:20]} 38. h3 {[%emt 0:01:07]} Qxa7 {[%emt 0:00:07]} 39. Qd7 {[%emt 0:00:04]} Qb6 {[%emt 0:00:32]} 40. Re1 {[%emt 0:00:00]} Qc6 {[%emt 0:00:00]} 41. Qg4 {[%emt 0:01:08]} Qd6 {[%emt 0:12:08]} 42. a4 {[%emt 0:02:13]} Ba6 {[%emt 0:00:50]} 43. Kg1 {[%emt 0:02:52]} Rf4 {[%emt 0:01:22]} 44. Qg5 {[%emt 0:00:27]} Bd3 {[%emt 0:00:52]} 45. a5 {[%emt 0:01:45]} Be4 {[%emt 0:02:34]} 46. Re2 {[%emt 0:15:18]} Qc5+ {[%emt 0:04:30]} 47. Kh2 {[%emt 0:00:18]} Qc7 {[%emt 0:00:05]} 48. Kg1 {[%emt 0:00:48]} Kg7 {[%emt 0:00:14]} 49. Rf2 {[%emt 0:03:57]} Rxf2 {[%emt 0:01:23]} 50. Kxf2 {[%emt 0:00:04]} Qc5+ {[%emt 0:01:00]} 51. Ke2 {[%emt 0:01:02]} Qd6 {[%emt 0:01:40]} 52. Ke3 {[%emt 0:01:23]} h6 {[%emt 0:01:23]} 53. Qg4 {[%emt 0:00:12]} Qc5+ {[%emt 0:01:20]} 54. Ke2 {[%emt 0:00:32]} Bf5 {[%emt 0:01:02]} 55. Qg3 {[%emt 0:04:56]} Qxa5 {[%emt 0:02:35]} 56. Qe5+ {[%emt 0:00:06]} Kf7 {[%emt 0:00:04]} 57. Qh8 {[%emt 0:02:12]} Qa6+ {[%emt 0:00:44]} 58. Kd2 {[%emt 0:00:17]} Qd3+ {[%emt 0:00:16]} 59. Ke1 {[%emt 0:00:03]} Qe3+ {[%emt 0:00:18]} 60. Kd1 {[%emt 0:00:05]} Qg1+ {[%emt 0:00:18]} 61. Kd2 {[%emt 0:00:12]} Qxg2+ {[%emt 0:00:12]} 62. Ke3 {[%emt 0:00:04]} Qxh3+ {[%emt 0:02:06]} 63. Kd4 {[%emt 0:00:06]} Qh4+ {[%emt 0:00:46]} 64. Kc5 {[%emt 0:00:05]} Qe7+ {[%emt 0:00:07]} 65. Kxd5 {[%emt 0:00:12]} Qf8 {[%emt 0:00:18]} 66. Qe5 {[%emt 0:00:17]} Qe7 {[%emt 0:00:29]} 67. Qf4 {[%emt 0:01:12]} Qe4+ {[%emt 0:00:11]} 68. Qxe4 {[%emt 0:00:05]} Bxe4+ {[%emt 0:00:06]} 69. Kxe4 {[%emt 0:00:01]} Ke6 {[%emt 0:00:09]} 70. c4 {[%emt 0:00:05]} Kd6 {[%emt 0:00:05]} 71. Kd4 {[%emt 0:00:05]} g5 {[%emt 0:00:15]} 0-1

[Event "FIDE WYCC Open U14 2023"]
[Site "Montesilvano"]
[Date "2023.11.13"]
[Round "1.3"]
[White "Boci, Mateo"]
[Black "Villa Tornero, Alex"]
[Result "0-1"]
[ECO "B42"]
[WhiteElo "1832"]
[BlackElo "2383"]
[Annotator "ChessBase"]
[PlyCount "134"]
[EventDate "2023.11.13"]
[EventType "swiss"]
[EventCountry "ITA"]
[SourceTitle "playchess.com"]
[Source "ChessBase"]
[SourceQuality "1"]
[TimeControl "40/5400+30:1800+30"]

1. e4 {[%emt 0:00:07]} c5 {[%emt 0:00:40]} 2. Nf3 {[%emt 0:00:24]} e6 {[%emt 0:00:18]} 3. d4 {[%emt 0:00:17]} cxd4 {[%emt 0:00:05]} 4. Nxd4 {[%emt 0:00:09]} a6 {[%emt 0:00:20]} 5. Bd3 {[%emt 0:00:26]} Nf6 {[%emt 0:00:25]} 6. O-O {[%emt 0:00:48]} Qc7 {[%emt 0:00:43]} 7. Qe2 {[%emt 0:01:56]} d6 {[%emt 0:00:15]} 8. c4 {[%emt 0:01:37]} Be7 {[%emt 0:00:35]} 9. Nc3 {[%emt 0:01:12]} O-O {[%emt 0:00:25]} 10. Kh1 {[%emt 0:01:20]} b6 {[%emt 0:01:38]} 11. f4 {[%emt 0:00:52]} Nbd7 {[%emt 0:00:59]} 12. Bd2 {[%emt 0:00:39]} Re8 {[%emt 0:05:43]} 13. Rae1 {[%emt 0:02:42]} Bb7 {[%emt 0:00:41]} 14. Nf3 {[%emt 0:02:43]} g6 {[%emt 0:09:37]} 15. f5 {[%emt 0:01:13]} Ne5 {[%emt 0:10:23]} 16. Nxe5 {[%emt 0:08:52]} dxe5 {[%emt 0:00:18]} 17. fxe6 {[%emt 0:00:12]} fxe6 {[%emt 0:00:15]} 18. Be3 {[%emt 0:05:11]} Rf8 {[%emt 0:12:56]} 19. Na4 {[%emt 0:09:26]} Qc6 {[%emt 0:10:59]} 20. Nc3 {[%emt 0:15:38]} Rad8 {[%emt 0:03:48]} 21. Bc2 {[%emt 0:01:23]} Nh5 {[%emt 0:13:25]} 22. Ba4 {[%emt 0:08:20]} Qc7 {[%emt 0:01:50]} 23. Rxf8+ {[%emt 0:01:50]} Rxf8 {[%emt 0:02:10]} 24. Qg4 {[%emt 0:01:10]} Bc8 {[%emt 0:02:20]} 25. Bb3 {[%emt 0:02:16]} Bc5 {[%emt 0:01:04]} 26. Bh6 {[%emt 0:01:16]} Rf7 {[%emt 0:03:56]} 27. Rd1 {[%emt 0:02:14]} Nf4 {[%emt 0:04:10]} 28. g3 {[%emt 0:07:02]} Nh5 {[%emt 0:01:09]} 29. Na4 {[%emt 0:00:28]} Nf6 {[%emt 0:01:21]} 30. Qe2 {[%emt 0:02:41]} Nxe4 {[%emt 0:01:40]} 31. Qxe4 {[%emt 0:03:04]} Bb7 {[%emt 0:00:03]} 32. Nxc5 {[%emt 0:00:05]} bxc5 {[%emt 0:01:17]} 33. Rd5 {[%emt 0:02:13]} exd5 {[%emt 0:00:56]} 34. cxd5 {[%emt 0:00:03]} Qd6 {[%emt 0:00:22]} 35. Kg1 {[%emt 0:00:40]} Rd7 {[%emt 0:04:24]} 36. Qf3 {[%emt 0:00:41]} c4 {[%emt 0:00:54]} 37. Bxc4 {[%emt 0:01:42]} Qc5+ {[%emt 0:00:16]} 38. Qf2 {[%emt 0:00:04]} Qxf2+ {[%emt 0:00:50]} 39. Kxf2 {[%emt 0:02:16]} Bxd5 {[%emt 0:00:07]} 40. Bxa6 {[%emt 0:00:00]} Ra7 {[%emt 0:00:00]} 41. Bd3 {[%emt 0:01:40]} Rxa2 {[%emt 0:03:11]} 42. Bc1 {[%emt 0:00:35]} Ra1 {[%emt 0:00:51]} 43. Bd2 {[%emt 0:00:11]} Rh1 {[%emt 0:10:10]} 44. Bc3 {[%emt 0:01:06]} Rxh2+ {[%emt 0:00:07]} 45. Ke3 {[%emt 0:00:18]} Rh5 {[%emt 0:01:23]} 46. b4 {[%emt 0:02:33]} Kf7 {[%emt 0:01:31]} 47. Be2 {[%emt 0:02:56]} Rg5 {[%emt 0:08:38]} 48. Kf2 {[%emt 0:01:01]} Rf5+ {[%emt 0:01:17]} 49. Ke3 {[%emt 0:00:07]} h5 {[%emt 0:01:19]} 50. b5 {[%emt 0:00:37]} Ke6 {[%emt 0:00:52]} 51. Be1 {[%emt 0:03:09]} Rf8 {[%emt 0:02:27]} 52. g4 {[%emt 0:01:14]} Rh8 {[%emt 0:00:05]} 53. gxh5 {[%emt 0:00:43]} gxh5 {[%emt 0:00:04]} 54. b6 {[%emt 0:00:12]} h4 {[%emt 0:01:05]} 55. Bg4+ {[%emt 0:01:00]} Kd6 {[%emt 0:00:21]} 56. Bh3 {[%emt 0:00:06]} Kc6 {[%emt 0:01:39]} 57. Bc3 {[%emt 0:00:01]} Rh5 {[%emt 0:00:23]} 58. Kf2 {[%emt 0:00:26]} Kxb6 {[%emt 0:01:04]} 59. Kg1 {[%emt 0:00:07]} Kc5 {[%emt 0:00:24]} 60. Kh2 {[%emt 0:00:07]} e4 {[%emt 0:01:59]} 61. Bg4 {[%emt 0:00:04]} Rh6 {[%emt 0:02:06]} 62. Bd2 {[%emt 0:01:31]} Rg6 {[%emt 0:00:08]} 63. Bf5 {[%emt 0:00:10]} Rf6 {[%emt 0:00:30]} 64. Be3+ {[%emt 0:00:05]} Kc4 {[%emt 0:00:11]} 65. Bg4 {[%emt 0:00:04]} Kd3 {[%emt 0:00:09]} 66. Bc5 {[%emt 0:00:24]} e3 {[%emt 0:00:11]} 67. Bd7 {[%emt 0:00:05]} e2 {[%emt 0:00:13]} 0-1

[Event "FIDE WYCC Open U14 2023"]
[Site "Montesilvano"]
[Date "2023.11.13"]
[Round "1.4"]
[White "Uskov, Artem"]
[Black "Meysman, Kaito"]
[Result "1-0"]
[ECO "B07"]
[WhiteElo "2380"]
[BlackElo "1832"]
[Annotator "RC"]
[PlyCount "95"]
[EventDate "2023.11.13"]
[EventType "swiss"]
[EventCountry "ITA"]
[SourceTitle "playchess.com"]
[Source "ChessBase"]
[SourceQuality "1"]
[TimeControl "40/5400+30:1800+30"]

1. e4 {[%emt 0:00:02]} d6 {[%emt 0:00:13]} 2. d4 {[%emt 0:00:07]} Nf6 {[%emt 0:00:06]} 3. Nc3 {[%emt 0:00:03]} g6 {[%emt 0:00:15]} 4. h3 {[%emt 0:00:24]} Bg7 {[%emt 0:00:12]} 5. Be3 {[%emt 0:00:06]} O-O {[%emt 0:00:24]} 6. Nf3 {[%emt 0:00:10]} e6 {[%emt 0:00:21]} 7. Bd3 {[%emt 0:04:38]} b6 {[%emt 0:02:06]} 8. Qe2 {[%emt 0:01:19]} Bb7 {[%emt 0:00:20]} 9. O-O {[%emt 0:01:00]} Nbd7 {[%emt 0:01:38]} 10. Rad1 {[%emt 0:00:48]} d5 {[%emt 0:03:24]} 11. Bg5 {[%emt 0:00:52]} h6 {[%emt 0:01:30]} 12. Bh4 {[%emt 0:00:01]} g5 {[%emt 0:08:23]} 13. Bg3 {[%emt 0:01:29]} c5 {[%emt 0:00:21]} 14. exd5 {[%emt 0:01:39]} exd5 {[%emt 0:00:51]} 15. dxc5 {[%emt 0:09:27]} Re8 {[%emt 0:02:38]} 16. Qd2 {[%emt 0:00:18]} Nxc5 {[%emt 0:00:12]} 17. Nd4 {[%emt 0:01:11]} Nfe4 {[%emt 0:06:31]} 18. Bxe4 {[%emt 0:02:56]} dxe4 {[%emt 0:00:27]} 19. Qe3 {[%emt 0:00:12]} Qf6 {[%emt 0:01:13]} 20. Ndb5 {[%emt 0:00:53]} Ba6 {[%emt 0:03:36]} 21. b4 {[%emt 0:02:29]} Na4 {[%emt 0:01:49]} 22. Rd6 {[%emt 0:08:44]} Qe7 {[%emt 0:06:01]} 23. Nd5 {[%emt 0:00:12]} Qf8 {[%emt 0:01:55]} 24. c4 {[%emt 0:02:13]} Nb2 {[%emt 0:04:46]} 25. Qe2 {[%emt 0:01:44]} f5 {[%emt 0:04:41]} 26. Rg6 {[%emt 0:06:11]} Kh7 {[%emt 0:04:59]} 27. Qh5 {[%emt 0:00:47]} Bxb5 {[%emt 0:01:49]} 28. Bd6 {[%emt 0:01:26]} Qf7 {[%emt 0:00:33]} 29. Nf6+ {[%emt 0:00:11]} Qxf6 {[%emt 0:00:12]} 30. Rxf6 {[%emt 0:00:04]} Bxf6 {[%emt 0:00:13]} 31. Qf7+ {[%emt 0:00:14]} Bg7 {[%emt 0:00:10]} 32. Qxf5+ {[%emt 0:00:04]} Kh8 {[%emt 0:00:10]} 33. Qxb5 {[%emt 0:00:09]} a6 {[%emt 0:00:29]} 34. Qd5 {[%emt 0:00:04]} Rad8 {[%emt 0:00:47]} 35. c5 {[%emt 0:00:06]} bxc5 {[%emt 0:00:50]} 36. bxc5 {[%emt 0:00:06]} Nd3 {[%emt 0:00:26]} 37. Qc4 {[%emt 0:01:05]} a5 {[%emt 0:02:21]} 38. Qb5 {[%emt 0:00:46]} Bd4 {[%emt 0:00:39]} 39. Qc4 {[%emt 0:00:39]} Bg7 {[%emt 0:00:22]} 40. Rb1 {[%emt 0:00:00]} Nb4 {[%emt 0:00:00]} 41. Bc7 {[%emt 0:00:44]} Rd4 {[%emt 0:01:23]} 42. Qb5 {[%emt 0:00:03]} Rf8 {[%emt 0:00:39]} 43. Bxa5 {[%emt 0:00:05]} Nd3 {[%emt 0:00:13]} 44. Bc3 {[%emt 0:00:03]} Nxf2 {[%emt 0:01:13]} 45. Bxd4 {[%emt 0:00:12]} Bxd4 {[%emt 0:00:12]} 46. Qc4 {[%emt 0:00:03]} Rd8 {[%emt 0:01:43]} 47. Rb8 {[%emt 0:00:14]} Nxh3+ {[%emt 0:00:22]} 48. Kf1 1-0

[Event "FIDE WYCC Open U14 2023"]
[Site "Montesilvano"]
[Date "2023.11.13"]
[Round "1.5"]
[White "Ahn, Maximilian"]
[Black "Agasarov, Benik"]
[Result "0-1"]
[ECO "B24"]
[WhiteElo "1813"]
[BlackElo "2360"]
[Annotator "RC"]
[PlyCount "30"]
[EventDate "2023.11.13"]
[EventType "swiss"]
[EventCountry "ITA"]
[SourceTitle "playchess.com"]
[Source "ChessBase"]
[SourceQuality "1"]
[TimeControl "40/5400+30:1800+30"]

1. e4 {[%emt 0:00:03]} c5 {[%emt 0:00:07]} 2. Nc3 {[%emt 0:00:10]} Nc6 {[%emt 0:00:11]} 3. Bb5 {[%emt 0:00:30]} Nd4 {[%emt 0:00:12]} 4. Nf3 {[%emt 0:00:34]} e6 {[%emt 0:00:17]} 5. Nxd4 {[%emt 0:03:16]} cxd4 {[%emt 0:00:54]} 6. Ne2 {[%emt 0:01:11]} Qg5 {[%emt 0:00:09]} 7. Nxd4 {[%emt 0:12:05]} Qc5 {[%emt 0:00:20]} 8. c3 {[%emt 0:08:49]} e5 {[%emt 0:00:06]} 9. Bxd7+ {[%emt 0:05:14]} Bxd7 {[%emt 0:00:07]} 10. Nb3 {[%emt 0:01:02]} Qc7 {[%emt 0:01:14]} 11. O-O {[%emt 0:02:51]} Nf6 {[%emt 0:01:08]} 12. Re1 {[%emt 0:00:55]} Be7 {[%emt 0:04:29]} 13. d4 {[%emt 0:05:42]} O-O {[%emt 0:00:35]} 14. Bg5 {[%emt 0:08:25]} exd4 {[%emt 0:06:47]} 15. cxd4 {[%emt 0:05:11]} Ng4 {[%emt 0:00:32]} 0-1

[Event "FIDE WYCC Open U14 2023"]
[Site "Montesilvano"]
[Date "2023.11.13"]
[Round "1.6"]
[White "Arca, Christian Gian Karlo"]
[Black "Daaevik Wadhawan"]
[Result "1-0"]
[ECO "A45"]
[WhiteElo "2347"]
[BlackElo "1810"]
[Annotator "ChessBase"]
[PlyCount "109"]
[EventDate "2023.11.13"]
[EventType "swiss"]
[EventCountry "ITA"]
[SourceTitle "playchess.com"]
[Source "ChessBase"]
[SourceQuality "1"]
[TimeControl "40/5400+30:1800+30"]

1. d4 {[%emt 0:00:04]} Nf6 {[%emt 0:00:42]} 2. Bf4 {[%emt 0:00:25]} g6 {[%emt 0:00:02]} 3. Nc3 {[%emt 0:00:07]} d5 {[%emt 0:00:06]} 4. e3 {[%emt 0:00:06]} Bg7 {[%emt 0:00:06]} 5. h4 {[%emt 0:00:09]} O-O {[%emt 0:00:14]} 6. h5 {[%emt 0:00:05]} c5 {[%emt 0:00:08]} 7. hxg6 {[%emt 0:03:33]} hxg6 {[%emt 0:00:03]} 8. Nf3 {[%emt 0:00:17]} Qb6 {[%emt 0:01:01]} 9. Rb1 {[%emt 0:01:03]} Nc6 {[%emt 0:10:04]} 10. Be5 {[%emt 0:15:00]} cxd4 {[%emt 0:12:20]} 11. exd4 {[%emt 0:01:07]} Bg4 {[%emt 0:02:15]} 12. Qd2 {[%emt 0:03:04]} Bxf3 {[%emt 0:07:27]} 13. gxf3 {[%emt 0:00:40]} Nxe5 {[%emt 0:00:59]} 14. dxe5 {[%emt 0:00:09]} d4 {[%emt 0:00:54]} 15. Nb5 {[%emt 0:17:25]} Nd7 {[%emt 0:07:26]} 16. f4 {[%emt 0:01:00]} Rfd8 {[%emt 0:00:30]} 17. b4 {[%emt 0:22:40]} Qc6 {[%emt 0:11:28]} 18. Rh4 {[%emt 0:00:30]} Nb6 {[%emt 0:04:01]} 19. Bd3 {[%emt 0:01:41]} e6 {[%emt 0:03:47]} 20. Qe2 {[%emt 0:04:16]} a6 {[%emt 0:03:52]} 21. Nd6 {[%emt 0:00:49]} Rxd6 {[%emt 0:00:24]} 22. exd6 {[%emt 0:00:05]} Qxd6 {[%emt 0:00:03]} 23. Qf3 {[%emt 0:00:09]} Nd5 {[%emt 0:01:17]} 24. a3 {[%emt 0:02:14]} Rc8 {[%emt 0:01:54]} 25. Kf1 {[%emt 0:04:58]} Rd8 {[%emt 0:03:33]} 26. Kg2 {[%emt 0:01:36]} Kf8 {[%emt 0:02:55]} 27. Re1 {[%emt 0:00:17]} Qc7 {[%emt 0:05:05]} 28. Reh1 {[%emt 0:05:24]} Nf6 {[%emt 0:04:31]} 29. Re1 {[%emt 0:02:58]} Nd5 {[%emt 0:01:38]} 30. Qg3 {[%emt 0:01:56]} Qc6 {[%emt 0:03:22]} 31. Be4 {[%emt 0:00:47]} Qd6 {[%emt 0:01:04]} 32. Reh1 {[%emt 0:01:26]} Qc7 {[%emt 0:08:12]} 33. R1h3 {[%emt 0:03:49]} Nf6 {[%emt 0:01:09]} 34. Qg5 {[%emt 0:03:05]} Re8 {[%emt 0:03:16]} 35. Rh8+ {[%emt 0:02:41]} Bxh8 {[%emt 0:00:36]} 36. Rxh8+ {[%emt 0:00:06]} Ng8 {[%emt 0:00:08]} 37. a4 {[%emt 0:01:39]} b6 {[%emt 0:01:03]} 38. Rh7 {[%emt 0:00:41]} Qe7 {[%emt 0:01:02]} 39. Qe5 {[%emt 0:00:02]} Nf6 {[%emt 0:00:46]} 40. Kg1 {[%emt 0:00:00]} Qd8 {[%emt 0:00:00]} 41. Rh8+ {[%emt 0:03:01]} Ke7 {[%emt 0:08:39]} 42. Rxe8+ {[%emt 0:02:14]} Kxe8 {[%emt 0:00:14]} 43. Bb7 {[%emt 0:01:53]} a5 {[%emt 0:00:21]} 44. bxa5 {[%emt 0:00:09]} bxa5 {[%emt 0:00:01]} 45. Qc5 {[%emt 0:00:09]} Nd7 {[%emt 0:05:54]} 46. Bc6 {[%emt 0:05:13]} Qc7 {[%emt 0:00:25]} 47. Qb5 {[%emt 0:00:23]} Ke7 {[%emt 0:02:42]} 48. Bxd7 {[%emt 0:00:04]} Qxd7 {[%emt 0:00:01]} 49. Qxa5 {[%emt 0:00:09]} Qd6 {[%emt 0:00:14]} 50. Qe5 {[%emt 0:01:51]} f6 {[%emt 0:01:37]} 51. Qe4 {[%emt 0:06:11]} Qb4 {[%emt 0:01:37]} 52. Qxg6 {[%emt 0:01:36]} Qxa4 {[%emt 0:00:44]} 53. Qg7+ {[%emt 0:00:04]} Kd6 {[%emt 0:01:04]} 54. Qxf6 {[%emt 0:00:04]} Qxc2 {[%emt 0:00:41]} 55. Qd8+ {[%emt 0:00:04]} 1-0

[Event "FIDE WYCC Open U14 2023"]
[Site "Montesilvano"]
[Date "2023.11.13"]
[Round "1.7"]
[White "Sheahan, Gavin"]
[Black "Sowinski, Pawel"]
[Result "0-1"]
[ECO "A61"]
[WhiteElo "1807"]
[BlackElo "2347"]
[Annotator "ChessBase"]
[PlyCount "104"]
[EventDate "2023.11.13"]
[EventType "swiss"]
[EventCountry "ITA"]
[SourceTitle "playchess.com"]
[Source "ChessBase"]
[SourceQuality "1"]
[TimeControl "40/5400+30:1800+30"]

1. d4 {[%emt 0:00:01]} Nf6 {[%emt 0:00:04]} 2. c4 {[%emt 0:00:04]} e6 {[%emt 0:00:04]} 3. Nf3 {[%emt 0:00:04]} c5 {[%emt 0:05:14]} 4. d5 {[%emt 0:00:39]} exd5 {[%emt 0:00:02]} 5. cxd5 {[%emt 0:00:05]} d6 {[%emt 0:00:03]} 6. Nc3 {[%emt 0:00:24]} g6 {[%emt 0:00:04]} 7. Nd2 {[%emt 0:00:17]} Nbd7 {[%emt 0:12:31]} 8. e4 {[%emt 0:06:27]} Bg7 {[%emt 0:00:55]} 9. Be2 {[%emt 0:08:27]} O-O {[%emt 0:01:23]} 10. O-O {[%emt 0:00:42]} Qe7 {[%emt 0:10:29]} 11. Nc4 {[%emt 0:06:44]} Ne5 {[%emt 0:01:41]} 12. Ne3 {[%emt 0:03:02]} a6 {[%emt 0:03:46]} 13. a4 {[%emt 0:03:42]} Rb8 {[%emt 0:01:58]} 14. a5 {[%emt 0:03:49]} b5 {[%emt 0:06:33]} 15. axb6 {[%emt 0:00:59]} Rxb6 {[%emt 0:00:03]} 16. f4 {[%emt 0:09:09]} Ned7 {[%emt 0:00:51]} 17. Nc4 {[%emt 0:03:49]} Rb4 {[%emt 0:05:57]} 18. Bd3 {[%emt 0:03:41]} Nb6 {[%emt 0:05:31]} 19. Ne3 {[%emt 0:18:48]} Re8 {[%emt 0:11:03]} 20. Nc2 {[%emt 0:05:33]} Bg4 {[%emt 0:09:34]} 21. Qe1 {[%emt 0:01:45]} Rb3 {[%emt 0:00:02]} 22. h3 {[%emt 0:02:45]} c4 {[%emt 0:02:24]} 23. hxg4 {[%emt 0:02:19]} cxd3 {[%emt 0:00:02]} 24. Nd4 {[%emt 0:00:27]} Rxc3 {[%emt 0:00:48]} 25. bxc3 {[%emt 0:00:37]} Nxe4 {[%emt 0:00:58]} 26. Rf3 {[%emt 0:08:44]} Nxd5 {[%emt 0:11:19]} 27. Rxd3 {[%emt 0:01:04]} Nc5 {[%emt 0:00:20]} 28. Qxe7 {[%emt 0:01:59]} Rxe7 {[%emt 0:00:35]} 29. Rd2 {[%emt 0:04:21]} Nxc3 {[%emt 0:00:06]} 30. Bb2 {[%emt 0:04:30]} Bxd4+ {[%emt 0:00:28]} 31. Kh1 {[%emt 0:00:14]} Bg7 {[%emt 0:01:57]} 32. Rxd6 {[%emt 0:00:08]} Re8 {[%emt 0:00:07]} 33. Rc6 {[%emt 0:00:12]} N3e4 {[%emt 0:00:56]} 34. Bxg7 {[%emt 0:00:12]} Kxg7 {[%emt 0:00:01]} 35. Ra5 {[%emt 0:00:20]} Nd3 {[%emt 0:00:19]} 36. g5 {[%emt 0:01:08]} Nxf4 {[%emt 0:00:18]} 37. Rcxa6 {[%emt 0:00:10]} Ne6 {[%emt 0:00:23]} 38. Re5 {[%emt 0:00:41]} N4xg5 {[%emt 0:00:06]} 39. Raa5 {[%emt 0:00:10]} h6 {[%emt 0:00:05]} 40. Ra7 {[%emt 0:00:00]} Rc8 {[%emt 0:00:00]} 41. Re2 {[%emt 0:00:29]} Nd4 {[%emt 0:00:11]} 42. Re1 {[%emt 0:00:27]} Nf5 {[%emt 0:00:06]} 43. Kh2 {[%emt 0:00:16]} Rc2 {[%emt 0:00:06]} 44. Kh1 {[%emt 0:00:28]} h5 {[%emt 0:00:51]} 45. Rb1 {[%emt 0:00:22]} h4 {[%emt 0:00:07]} 46. Ra3 {[%emt 0:00:56]} Re2 {[%emt 0:00:26]} 47. Rb4 {[%emt 0:00:41]} Ne4 {[%emt 0:00:44]} 48. Rb1 {[%emt 0:00:17]} h3 {[%emt 0:00:15]} 49. gxh3 {[%emt 0:00:35]} Neg3+ {[%emt 0:00:05]} 50. Kg1 {[%emt 0:00:13]} Ne3 {[%emt 0:00:02]} 51. Rxe3 {[%emt 0:00:43]} Rxe3 {[%emt 0:00:04]} 52. Kf2 {[%emt 0:00:02]} Nf5 {[%emt 0:00:01]} 0-1